[Event "67th Mexican-ch Open 2022"]
[Site "Chihuahua"]
[Date "2022.04.14"]
[Round "2.19"]
[White "Jimenez Jimenez, Dante Edgar"]
[Black "Sandoval Mercado, Carlos"]
[Result "*"]
[ECO "E05"]
[WhiteElo "1721"]
[BlackElo "2289"]
[Annotator "TA"]
[PlyCount "44"]
[EventDate "2022.04.12"]
[EventType "swiss"]
[EventCountry "MEX"]
[SourceTitle "playchess.com"]
[Source "ChessBase"]
[SourceQuality "1"]
[TimeControl "5400+30"]

{[%evp 20,29,0,0,0,0,10,8,15,2,-23,0]} 1. d4 {[%emt 0:00:03]} d5 {[%emt 0:00:23]} 2. c4 {[%emt 1:31:27]} e6 {[%emt 0:00:15]} 3. Nf3 {[%emt 0:00:07]} Nf6 {[%emt 0:00:37]} 4. g3 {[%emt 0:00:05]} Be7 {[%emt 0:00:39]} 5. Bg2 {[%emt 0:00:08]} O-O {[%emt 0:00:29]} 6. O-O {[%emt 0:00:06]} dxc4 {[%emt 0:00:47]} 7. Qc2 {[%emt 0:00:22]} a6 {[%emt 0:01:00]} 8. Qxc4 {[%emt 0:00:06]} b5 {[%emt 0:00:21]} 9. Qc2 {[%emt 0:00:07]} Bb7 {[%emt 1:30:29]} 10. Bd2 {[%emt 0:00:37]} Be4 {[%emt 0:01:44]} 11. Qc1 {[%emt 0:00:10]} c6 {[%emt 0:01:07] E05: Open Catalan: 5 Nf3 Be7.} 12. a4 {[%emt 0:00:56] is currently scoring better than 12.Rd1.} Nbd7 {[%emt 0:01:37]} 13. Nc3 {[%emt 0:00:12]} Bg6 {[%emt 0:00:48]} 14. Nh4 {[%emt 1:34:25]} Bh5 {[%emt 0:01:35]} 15. h3 {[%emt 0:00:10] [#] A rather calm draw.  Weighted Error Value: White=0.03 (flawless) /Black=0.02 (flawless)} {Predecessor:} Rc8 $146 16. axb5 cxb5 17. Qd1 b4 18. Na4 Rc4 19. Bc1 Nb6 20. Nxb6 Qxb6 21. g4 Bg6 22. Nxg6 hxg6 {½-½ (56) Esipenko,A (2723)-Oparin,G (2674) Berlin 2022} *

[Event "67th Mexican-ch Open 2022"]
[Site "Chihuahua"]
[Date "2022.04.14"]
[Round "2.20"]
[White "Diaz Villagran, Robert"]
[Black "Baeza, Patricio"]
[Result "*"]
[WhiteElo "2318"]
[BlackElo "1711"]
[Annotator "TA"]
[PlyCount "49"]
[EventDate "2022.04.12"]
[EventType "swiss"]
[EventCountry "MEX"]
[SourceTitle "playchess.com"]
[Source "ChessBase"]
[SourceQuality "1"]
[TimeControl "5400+30"]

{[%evp 14,15,17,29]} 1. d4 {[%emt 0:00:03]} Nf6 {[%emt 0:00:07]} 2. Nf3 {[%emt 0:00:03]} e6 {[%emt 0:01:35]} 3. c4 {[%emt 0:00:37]} d5 {[%emt 0:01:05]} 4. Bg5 {[%emt 0:00:15]} Be7 {[%emt 0:00:11]} 5. Nc3 {[%emt 0:00:28]} c6 {[%emt 0:00:50]} 6. e3 {[%emt 0:00:16]} Nbd7 {[%emt 0:00:12]} 7. Rc1 {[%emt 0:03:35]} O-O {[%emt 1:30:00]} 8. Bd3 {[%emt 0:00:22] [#]} {Predecessor:} dxc4 $146 {D66: Queen's Gambit Declined: Classical: Main Line (7 Rc1 c6 8 Bd3).} 9. Bxc4 b5 10. Bd3 Bb7 11. O-O Rc8 12. a3 a5 13. Qe2 b4 14. axb4 axb4 15. Ne4 Nxe4 16. Bxe7 Qxe7 17. Bxe4 Nf6 18. Nd2 e5 19. Bd3 exd4 20. exd4 Qd6 21. Nb3 Rfe8 22. Qf3 Rcd8 23. Qg3 Bc8 24. Rfd1 Be6 25. Na5 {½-½ (25) Atalik,S (2494)-Zakhartsov,V (2514) Novi Sad 2021} *

[Event "67th Mexican-ch Open 2022"]
[Site "Chihuahua"]
[Date "2022.04.14"]
[Round "2.20"]
[White "Morales Garcia, Sergio Joshafatt"]
[Black "Serrato, Rafael Antonio"]
[Result "1-0"]
[ECO "D53"]
[WhiteElo "2246"]
[BlackElo "1707"]
[Annotator "TA"]
[PlyCount "83"]
[EventDate "2022.04.12"]
[EventType "swiss"]
[EventCountry "MEX"]
[SourceTitle "playchess.com"]
[Source "ChessBase"]
[SourceQuality "1"]
[TimeControl "5400+30"]

{[%evp 17,83,18,16,24,22,24,69,21,16,8,14,14,39,48,75,76,414,414,413,414,416,422,417,417,422,347,450,454,495,483,514,510,513,507,562,548,541,536,534,501,544,513,814,804,866,625,764,765,727,692,674,674,717,680,971,952,1081,1054,1767,1487,1579,1491,29990,29991,29991,29992,29993,29994]} 1. d4 {[%emt 0:00:03]} Nf6 {[%emt 0:00:07]} 2. Nf3 {[%emt 0:00:03]} e6 {[%emt 0:01:35]} 3. c4 {[%emt 0:00:37]} d5 {[%emt 0:01:05]} 4. Bg5 {[%emt 0:00:15]} Be7 {[%emt 0:00:11]} 5. Nc3 {[%emt 0:00:28]} c6 {[%emt 0:00:50]} 6. e3 {[%emt 0:00:16]} Nbd7 {[%emt 0:00:12]} 7. Rc1 {[%emt 0:03:35]} O-O {[%emt 0:00:18]} 8. Bd3 {[%emt 0:00:22]} b6 {[%emt 0:00:30]} 9. O-O {[%emt 0:07:51]} Bb7 {[%emt 0:02:31]} 10. Qe2 {[%emt 0:13:05] D53: Queen's Gambit Declined: 4 Bg5 Be7: Early deviations.} dxc4 {[%emt 0:07:02]} 11. Bxc4 {[%emt 0:00:09]} c5 {[%emt 0:00:00]} 12. Ba6 {[%emt 0:03:58] &Bianco is more active.} (12. dxc5 $14 h6 13. Bxf6 Nxf6 14. Rfd1) 12... Bxa6 $11 {[%emt 0:07:41]} 13. Qxa6 {[%emt 0:00:06]} cxd4 {[%emt 0:00:08]} 14. Nxd4 {[%emt 0:01:41]} Nc5 {[%emt 0:06:47]} (14... Qc8 $5 {[%cal Rc8a6]} 15. Qe2 Qb7 $14) 15. Qe2 {[%emt 0:01:27] [#] Hoping for b4.} Rc8 $146 {[%emt 0:02:34]} ({Predecessor:} 15... h6 16. Nc6 Qc7 17. Nxe7+ Qxe7 18. Bh4 Rfd8 19. Rfd1 Rac8 20. Rxd8+ Rxd8 21. Rd1 Rxd1+ 22. Qxd1 Qd7 23. Qxd7 Nfxd7 {½-½ (33) Cabo Alvarez,C-Gonzalez,A Gijon 1999}) 16. b4 {[%emt 0:12:38]} Nce4 {[%emt 0:21:55][%mdl 8192] Loses the game.} (16... Ncd7 $16) 17. Nxe4 $18 {[%emt 0:02:21]} Nxe4 {[%emt 0:00:13]} 18. Rxc8 {[%emt 0:01:37]} Qxc8 {[%emt 0:20:12]} 19. Bxe7 {[%emt 0:00:06]} Re8 {[%emt 0:00:01]} 20. Bh4 {[%emt 0:00:24][%cal Be7h4,Bh4g3,Bg3f2][%mdl 32]} e5 {[%emt 0:00:09]} 21. Nb3 {[%emt 0:02:38]} g5 {[%emt 0:02:17]} 22. Bg3 {[%emt 0:06:17]} f5 {[%emt 0:00:10]} 23. Rc1 {[%emt 0:02:15]} Qe6 {[%emt 0:08:49]} 24. f3 {[%emt 0:07:59]} Nd6 {[%emt 0:01:44]} 25. Qd3 {[%emt 0:01:23]} f4 {[%emt 0:03:18]} 26. exf4 {[%emt 0:03:32]} gxf4 {[%emt 0:01:56]} 27. Bf2 {[%emt 0:02:00]} Nf7 {[%emt 0:01:33]} 28. Qc4 {[%emt 0:02:36]} Qd6 {[%emt 0:02:46]} 29. Qc6 {[%emt 0:02:37]} Qf8 {[%emt 0:04:27]} (29... Qxc6 $142 30. Rxc6 Re7) 30. Nd2 {[%emt 0:03:03]} Rd8 {[%emt 0:00:19]} 31. Qc3 {[%emt 0:01:14]} Qd6 {[%emt 0:00:27]} 32. Ne4 {[%emt 0:00:46]} Qe7 {[%emt 0:01:03]} 33. g3 {[%emt 0:02:55]} fxg3 {[%emt 0:00:37]} 34. hxg3 {[%emt 0:01:52]} Qe6 {[%emt 0:00:58]} 35. Qc4 {[%emt 0:01:27]} Qh6 {[%emt 0:00:23]} 36. Kg2 {[%emt 0:01:01]} Qg7 {[%emt 0:01:35]} 37. a4 {[%emt 0:01:01]} h6 {[%emt 0:00:50]} 38. a5 {[%emt 0:00:52]} bxa5 {[%emt 0:00:29]} 39. bxa5 {[%emt 0:00:09] [#] Strongly threatening Qe6.} Rd7 {[%emt 0:00:13]} 40. Qe6 {[%emt 0:00:57] White mates.} Rd8 {[%emt 0:01:55]} 41. Rc7 {[%emt 0:00:12]} Rf8 {[%emt 0:00:36]} 42. Bc5 {[%emt 0:00:37] Weighted Error Value: White=0.12 (very precise) /Black=0.58} 1-0

[Event "67th Mexican-ch Open 2022"]
[Site "Chihuahua"]
[Date "2022.04.14"]
[Round "2.21"]
[White "Palma Villanueva, Miguel Ta"]
[Black "Almendarez Verdin, Manuel Adan"]
[Result "0-1"]
[ECO "C63"]
[WhiteElo "2210"]
[BlackElo "1662"]
[Annotator "TA"]
[PlyCount "90"]
[EventDate "2022.04.12"]
[EventType "swiss"]
[EventCountry "MEX"]
[SourceTitle "playchess.com"]
[Source "ChessBase"]
[SourceQuality "1"]
[TimeControl "5400+30"]

{[%evp 9,90,-18,-21,-30,0,-11,3,-99,-97,-132,-132,-132,-137,-171,-192,-183,-185,-240,-110,-208,-193,-212,-193,-238,-219,-233,-246,-294,-276,-235,-201,-263,-235,-310,-237,-239,-208,-209,-200,-216,-140,-224,-225,-325,-302,-353,-356,-369,-212,-260,-264,-383,-257,-651,-405,-411,-326,-308,-213,-326,-306,-300,-294,-550,-508,-762,-762,-733,0,0,0,0,11,-383,-354,-29991,-29992,-29992,-29993,-29993,-29994,-29997,-29998]} 1. e4 {[%emt 0:00:03]} e5 {[%emt 0:00:06]} 2. Nf3 {[%emt 0:00:05]} Nc6 {[%emt 0:00:05]} 3. Bb5 {[%emt 0:00:19]} f5 {[%emt 0:00:10]} 4. exf5 {[%emt 0:08:22]} e4 {[%emt 0:00:48]} 5. Ng1 {[%emt 0:12:52]} Qg5 {[%emt 0:00:49][%csl LRf5,LRg2][%mdl 1024] Black has compensation.} 6. g4 {[%emt 0:08:57] [#] C63: Ruy Lopez: Schliemann/Jaenisch Defence.} Qh4 $146 {[%emt 0:00:08] ...Nd4 is the strong threat.} ({Predecessor:} 6... h5 7. d3 Qe7 8. Be3 hxg4 9. Nc3 Nf6 10. dxe4 Nxe4 11. Qxg4 Nxc3 12. Qg6+ Qf7 13. bxc3 {1-0 (54) Sai,V (2151)-Gaehwiler,G (2360) Pune 2014}) 7. d4 {[%emt 0:03:40]} Nf6 {[%emt 0:02:58]} 8. Be2 {[%emt 0:01:29]} (8. h3 $1 $11) 8... h5 $1 $17 {[%emt 0:02:45][%cal Rh5g4] &Nero is more active.} 9. Bf4 {[%emt 0:08:30]} hxg4 {[%emt 0:03:23]} (9... Nxg4 10. Bxg4 Qxg4 11. Qxg4 hxg4 12. Nc3 $15) 10. Nc3 {[%emt 0:02:09]} Bb4 {[%emt 0:06:43]} 11. a3 {[%emt 0:08:06]} Bxc3+ {[%emt 0:02:44]} 12. bxc3 {[%emt 0:00:06]} d6 {[%emt 0:01:03]} 13. Rb1 {[%emt 0:07:04]} (13. Qd2 $142) 13... Qh5 {[%emt 0:03:36]} (13... Bxf5 $19 {[%cal Oe4e3] has better winning chances. White must now prevent ...e3!} 14. Qc1 O-O-O) 14. Qd2 {[%emt 0:01:16]} (14. h3 $17) 14... Qxf5 $19 {[%emt 0:00:48]} 15. Rb5 {[%emt 0:04:26]} Qd7 {[%emt 0:04:58]} 16. Bf1 {[%emt 0:08:43]} a6 {[%emt 0:03:15]} 17. Rb1 {[%emt 0:00:20]} Qf7 {[%emt 0:00:12]} 18. Bg2 {[%emt 0:01:43]} Qa2 {[%emt 0:01:24]} 19. Qc1 {[%emt 0:01:40]} Qc4 {[%emt 0:00:45]} 20. Qe3 {[%emt 0:01:18]} Ne7 {[%emt 0:06:53][%cal Bc6e7,Be7d5,Bd5b6,Bb6c4][%mdl 32]} (20... Qa2 21. Qc1 $17) 21. Ne2 {[%emt 0:06:33]} Ned5 {[%emt 0:02:34]} 22. Qd2 {[%emt 0:00:05]} b5 {[%emt 0:01:14][%cal Og4g3]} 23. O-O {[%emt 0:03:25]} Bb7 {[%emt 0:02:57]} 24. Rfe1 {[%emt 0:00:39]} O-O {[%emt 0:01:02]} 25. Bg3 {[%emt 0:02:35]} (25. Bg5 $17) 25... Rae8 {[%emt 0:00:48]} 26. Rb3 {[%emt 0:01:55]} (26. Nf4 {was worth a try.}) 26... Nb6 {[%emt 0:03:59][%cal Oe4e3] Pair of Knights!} 27. Nf4 {[%emt 0:00:41]} Qf7 {[%emt 0:00:13]} 28. Bf1 {[%emt 0:02:14]} d5 {[%emt 0:01:04] Inhibits c4.} (28... Nh7 $142 {aiming for ...Ng5.} 29. d5 Ng5) 29. Ng2 {[%emt 0:02:07]} Nc4 {[%emt 0:02:00]} 30. Qg5 {[%emt 0:00:16]} (30. Qe2 {keeps fighting.}) 30... Bc8 {[%emt 0:03:59][%cal Oe4e3] Hoping for ...e3!} 31. Bf4 $2 {[%emt 0:03:41]} (31. Bxc4 dxc4 32. Rbb1) 31... Nh5 {[%emt 0:00:43]} 32. Be3 {[%emt 0:00:11]} g3 {[%emt 0:01:32] Chess con chili.} 33. hxg3 {[%emt 0:00:20]} Re6 {[%emt 0:05:45][%cal Oe6g6]} 34. Be2 {[%emt 0:00:34]} (34. Bxc4 {is a better defense.} dxc4 35. Rbb1) 34... Nxe3 {[%emt 0:03:05]} 35. Qxe3 {[%emt 0:00:08]} Rf6 {[%emt 0:00:45][%cal Rf6f2]} 36. Rf1 $2 {[%emt 0:01:18]} (36. Rbb1 {might work better.}) 36... Bh3 {[%emt 0:00:55]} 37. Rbb1 {[%emt 0:00:16]} Bxg2 {[%emt 0:02:17]} 38. Kxg2 {[%emt 0:00:37]} Rf3 $2 {[%emt 0:01:27]} 39. Bxf3 $11 {[%emt 0:00:28]} exf3+ {[%emt 0:00:09]} 40. Kh2 $1 {[%emt 0:00:37] Strongly threatening Rbe1.} Qg6 {[%emt 0:01:25][%cal Oh5f4] And now ...Nf4! would win.} 41. Rfe1 $2 {[%emt 0:00:24][%mdl 8192] Now White is beyond hope.} (41. Rbe1 $11 {and White is okay.} Nf4 42. Rh1 (42. Qxf3 $2 Qh6+ 43. Kg1 Nh3+ 44. Kg2 Rxf3 $19)) 41... Nf4 $1 $19 {[%emt 0:01:32][%cal Bh5f4,Bf4h3,Bh3g5][%mdl 32] ( -> ...Qh5+)} 42. Kg1 $2 {[%emt 0:00:40] [#]} ({But not} 42. Qxf3 $2 Qh6+ 43. Kg1 Nh3+ 44. Kg2 Rxf3 45. Kxf3 Ng5+ 46. Kg4 Ne4 47. Rxe4 Qg6+ 48. Kh3 Qxe4 $19) (42. Qe7 $19 Qxc2 43. Rf1 (43. gxf4 {gets mated.} Qxf2+ 44. Kh3 Qg2+ 45. Kh4 Rxf4+ 46. Kh5 Qg4#)) 42... Qh5 $1 {[%emt 0:05:38] Black mates.} 43. Rbd1 {[%emt 0:00:24]} (43. Red1 Ne2+) 43... Nh3+ {[%emt 0:01:14]} ({Inferior is} 43... Ne2+ 44. Rxe2 $1 fxe2 45. Qe6+ Kh7 46. Re1 $14) 44. Kf1 {[%emt 0:00:07] [#]} Ng5 $1 {[%emt 0:00:09][%cal Rh5h1]} 45. Kg1 {[%emt 0:00:06] [#]} Qh3 $1 {[%emt 0:00:29] Weighted Error Value: White=0.77/Black=0.29 (precise)} 0-1

[Event "67th Mexican-ch Open 2022"]
[Site "Chihuahua"]
[Date "2022.04.14"]
[Round "2.21"]
[White "Serrato, Rafael Antonio"]
[Black "Capo Vidal, Uriel"]
[Result "*"]
[WhiteElo "1707"]
[BlackElo "2306"]
[Annotator "TA"]
[PlyCount "29"]
[EventDate "2022.04.12"]
[EventType "swiss"]
[EventCountry "MEX"]
[SourceTitle "playchess.com"]
[Source "ChessBase"]
[SourceQuality "1"]
[TimeControl "5400+30"]

{[%evp 8,8,-6]} 1. e4 {[%emt 0:00:03]} e5 {[%emt 0:00:06]} 2. Nf3 {[%emt 0:00:05]} Nc6 {[%emt 0:00:05]} 3. Bb5 {[%emt 0:00:19]} f5 {[%emt 0:00:10]} 4. exf5 {[%emt 0:08:22]} e4 {[%emt 0:00:48] [#] A rather calm draw.} {Predecessor:} 5. Qe2 $146 Qe7 6. Bxc6 {C63: Ruy Lopez: Schliemann/Jaenisch Defence.} bxc6 7. Nd4 c5 8. Nb3 a5 9. Qh5+ Kd8 10. a4 Nf6 11. Qh4 Ba6 12. Nc3 Bc4 13. Ne2 Ra6 14. Nf4 Rg8 15. Kd1 {1-0 (40) Saraci,N (2415)-Herman,M (2383) Chess.com INT 2021} *

[Event "67th Mexican-ch Open 2022"]
[Site "Chihuahua"]
[Date "2022.04.14"]
[Round "2.22"]
[White "Maass Garza R, Alejandro"]
[Black "Huerta Milan, Hector"]
[Result "*"]
[WhiteElo "2265"]
[BlackElo "1672"]
[Annotator "TA"]
[PlyCount "43"]
[EventDate "2022.04.12"]
[EventType "swiss"]
[EventCountry "MEX"]
[SourceTitle "playchess.com"]
[Source "ChessBase"]
[SourceQuality "1"]
[TimeControl "5400+30"]

{[%evp 13,15,8,30,22]} 1. d4 {[%emt 0:00:02]} d5 {[%emt 0:00:21]} 2. c4 {[%emt 0:00:07]} e6 {[%emt 0:00:28]} 3. Nc3 {[%emt 0:00:03]} Nf6 {[%emt 0:00:15]} 4. Nf3 {[%emt 1:32:18]} Be7 {[%emt 0:00:21]} 5. Bg5 {[%emt 0:00:07]} O-O {[%emt 0:00:22]} 6. e3 {[%emt 0:00:17]} h6 {[%emt 0:00:37]} 7. Bf4 {[%emt 0:01:21]} c6 {[%emt 0:01:46]} 8. Rc1 {[%emt 1:32:29] [#] Not much happened in this game. D66: Queen's Gambit Declined: Classical: Main Line (7 Rc1 c6 8 Bd3).} {Predecessor:} Nbd7 $146 9. Bd3 Nh5 10. O-O Nxf4 11. exf4 dxc4 12. Bxc4 b5 13. Bd3 Qb6 14. Re1 Rd8 15. Qc2 Nf6 16. a3 Bd7 17. f5 a5 18. g3 Qb7 19. Rcd1 Bf8 20. Ne4 Nxe4 21. fxe6 Bxe6 22. Bxe4 {½-½ (43) Iniguez,M (2309)-Bendana Guerrero,G (2432) ICCF email 2011} *

[Event "67th Mexican-ch Open 2022"]
[Site "Chihuahua"]
[Date "2022.04.14"]
[Round "2.22"]
[White "Paredes Guzman, Francisco Javier"]
[Black "Pacheco Almaraz, Jose Rodolfo"]
[Result "1-0"]
[ECO "D55"]
[WhiteElo "1891"]
[BlackElo "1643"]
[Annotator "NA RC"]
[PlyCount "67"]
[EventDate "2022.04.12"]
[EventType "swiss"]
[EventCountry "MEX"]
[SourceTitle "playchess.com"]
[Source "ChessBase"]
[SourceQuality "1"]
[TimeControl "5400+30"]

{[%evp 31,67,63,32767,32767,32767,268,573,667,593,638,764,791,939,960,1004,1300,967,568,967,1320,1116,1249,32767,32767,1829,2055,1722,710,943,923,980,624,646,634,614,625,982,470]} 1. d4 {[%emt 0:00:02]} d5 {[%emt 0:00:21]} 2. c4 {[%emt 0:00:07]} e6 {[%emt 0:00:28]} 3. Nc3 {[%emt 0:00:03]} Nf6 {[%emt 0:00:15]} 4. Nf3 {[%emt 0:00:04]} Be7 {[%emt 0:00:21]} 5. Bg5 {[%emt 0:00:07]} O-O {[%emt 0:00:22]} 6. e3 {[%emt 0:00:17]} h6 {[%emt 0:00:37]} 7. Bf4 {[%emt 0:01:21]} c6 {[%emt 0:01:46]} 8. Rc1 {[%emt 0:00:14]} Qa5 {[%emt 0:04:34]} 9. Bd3 {[%emt 0:15:18]} dxc4 {[%emt 0:06:08]} 10. Bxc4 {[%emt 0:00:21]} b5 {[%emt 0:02:55]} 11. Bb3 {[%emt 0:00:18]} Ba6 {[%emt 0:00:09]} 12. O-O {[%emt 0:08:47]} b4 {[%emt 0:01:06]} 13. Ne2 {[%emt 0:01:32]} Bb5 {[%emt 0:00:24]} 14. Ne5 {[%emt 0:20:14]} Qa6 {[%emt 0:00:31]} 15. Re1 {[%emt 0:01:39]} Nbd7 {[%emt 0:00:10]} 16. Ng3 {[%emt 0:17:52]} Rfd8 {[%emt 0:00:14]} 17. Qf3 {[%emt 0:00:54]} Nd5 {[%emt 0:06:38] [#]} 18. Nxf7 $1 {[%emt 0:13:09]} Rf8 $2 {[%emt 0:00:28] [#]} (18... Kxf7 19. e4 N7f6) 19. Nxh6+ $1 {[%emt 0:03:34]} gxh6 {[%emt 0:04:36]} 20. Qg4+ {[%emt 0:00:10]} Kh7 {[%emt 0:01:33]} 21. Qxe6 {[%emt 0:00:33]} N7f6 {[%emt 0:03:05]} 22. Bxd5 {[%emt 0:00:48]} Nxd5 {[%emt 0:00:43]} 23. Qxh6+ {[%emt 0:00:05]} Kg8 {[%emt 0:00:09]} 24. Qg6+ {[%emt 0:00:05]} Kh8 {[%emt 0:00:32]} 25. Be5+ {[%emt 0:01:25]} Bf6 {[%emt 0:00:16]} 26. e4 {[%emt 0:00:06]} Bd3 {[%emt 0:01:54]} 27. Qh6+ {[%emt 0:00:48]} Kg8 {[%emt 0:00:57]} 28. exd5 {[%emt 0:00:10]} cxd5 {[%emt 0:00:55]} 29. Rc7 {[%emt 0:01:18]} Rf7 {[%emt 0:00:15]} 30. Rxf7 {[%emt 0:00:39]} Kxf7 {[%emt 0:00:07]} 31. Bxf6 {[%emt 0:00:57]} Qxf6 {[%emt 0:00:12]} 32. Qh5+ {[%emt 0:00:17]} Kf8 $18 {[%emt 0:01:09]} 33. Qxd5 {[%emt 0:00:15]} Rd8 {[%emt 0:00:15]} 34. Qe5 {[%emt 0:01:25]} (34. Qc5+ $142 Qd6 35. Qg5) 1-0

[Event "67th Mexican-ch Open 2022"]
[Site "Chihuahua"]
[Date "2022.04.14"]
[Round "2.23"]
[White "Almendarez Verdin, Manuel Adan"]
[Black "Morales Garcia, Sergio Joshafatt"]
[Result "*"]
[WhiteElo "1662"]
[BlackElo "2246"]
[Annotator "TA"]
[PlyCount "34"]
[EventDate "2022.04.12"]
[EventType "swiss"]
[EventCountry "MEX"]
[SourceTitle "playchess.com"]
[Source "ChessBase"]
[SourceQuality "1"]
[TimeControl "5400+30"]

{[%evp 13,17,14,13,-2,0,0]} 1. e4 {[%emt 0:00:08]} e5 {[%emt 0:00:14]} 2. Nf3 {[%emt 0:00:07]} Nc6 {[%emt 0:00:05]} 3. Bc4 {[%emt 0:00:33]} Bc5 {[%emt 0:00:17]} 4. Nc3 {[%emt 0:01:35]} Nf6 {[%emt 0:00:32]} 5. d3 {[%emt 0:00:24]} h6 {[%emt 0:01:50]} 6. Be3 {[%emt 0:05:02]} Bb6 {[%emt 0:01:30]} 7. h3 {[%emt 0:04:14] 7.Nd5 is setting a new trend.} d6 {[%emt 1:29:32]} 8. Nd5 {[%emt 0:01:49] C50: Hungarian Defence and Giuoco Pianissimo.} Nxd5 {[%emt 0:01:08]} 9. Bxd5 {[%emt 0:00:11] [#] A rather calm draw.} {Predecessor:} Ne7 $146 10. Bb3 O-O 11. Qd2 Bxe3 12. Qxe3 a5 13. a4 Ng6 14. O-O-O Qf6 15. d4 Be6 16. dxe5 dxe5 17. Bxe6 Qxe6 {½-½ (46) Plotkin,V (2367)-Moradiabadi,E (2555) Tornelo INT 2021} *

[Event "67th Mexican-ch Open 2022"]
[Site "Chihuahua"]
[Date "2022.04.14"]
[Round "2.24"]
[White "Capo Vidal, Uriel"]
[Black "Arizpe, Frank"]
[Result "1-0"]
[ECO "E76"]
[WhiteElo "2306"]
[BlackElo "1274"]
[Annotator "TA"]
[PlyCount "55"]
[EventDate "2022.04.12"]
[EventType "swiss"]
[EventCountry "MEX"]
[SourceTitle "playchess.com"]
[Source "ChessBase"]
[SourceQuality "1"]
[TimeControl "5400+30"]

{[%evp 16,55,0,-12,62,63,65,25,27,0,50,43,48,64,98,91,141,79,260,276,270,271,279,279,255,265,302,302,319,324,317,311,314,314,312,312,315,316,425,447,523,514]} 1. d4 {[%emt 0:00:04]} Nf6 {[%emt 0:00:18]} 2. c4 {[%emt 0:00:08]} g6 {[%emt 0:00:06]} 3. Nc3 {[%emt 0:00:05]} Bg7 {[%emt 0:00:10]} 4. e4 {[%emt 0:00:10]} d6 {[%emt 0:00:13]} 5. f4 {[%emt 0:00:37]} O-O {[%emt 0:00:40]} 6. Nf3 {[%emt 0:00:09]} c5 {[%emt 0:00:11]} 7. dxc5 {[%emt 0:02:03]} dxc5 {[%emt 0:00:20]} 8. Qxd8 {[%emt 0:00:07]} Rxd8 {[%emt 0:00:02]} 9. e5 {[%emt 0:00:31]} Ng4 {[%emt 0:02:54] E76: King's Indian: Four Pawns Attack: Lines specific to 6 Nf3 move-order.} (9... Ne8 $1 $11) 10. h3 {[%emt 0:02:05]} Nh6 {[%emt 0:00:13]} 11. Be3 {[%emt 0:00:21]} b6 {[%emt 0:01:07] White has an edge.} 12. Nd5 {[%emt 0:02:35]} Nc6 {[%emt 0:00:51] [#]} (12... Nf5 $11 13. Bf2 Bb7) 13. g4 $146 {[%emt 0:00:29][%cal Bg2g4,Bg4g5][%mdl 32]} ({Predecessor:} 13. O-O-O Be6 14. g4 f6 15. Bd3 Rac8 16. g5 fxg5 17. Nxg5 Bf5 18. Bxf5 Nxf5 19. Ne6 {½-½ (25) Fedoseev,V (2318)-Melnikova,Y (2264) Varna 2009}) 13... Bb7 {[%emt 0:02:56] [#] Hoping for ...e6.} 14. Bg2 {[%emt 0:03:52]} Rd7 {[%emt 0:04:30]} 15. O-O-O $36 {[%emt 0:06:40][%cal Od5f6][%mdl 2048] And now Nf6+! would win. Black is under strong pressure.} Rad8 {[%emt 0:01:32]} (15... Kh8 $142) 16. b3 {[%emt 0:06:17] &Bianco is much more active.} (16. f5 $142) 16... f5 {[%emt 0:13:57] Black cannot hold the game after this.} (16... Kh8 $16 {was necessary.}) 17. g5 $18 {[%emt 0:01:04]} Nf7 {[%emt 0:10:29]} 18. e6 $1 {[%emt 0:00:14][%csl LRd7,LRf7]} Rd6 {[%emt 0:00:31]} 19. exf7+ {[%emt 0:00:09]} Kxf7 {[%emt 0:00:17]} 20. Rhe1 {[%emt 0:02:08]} e6 {[%emt 0:04:28]} 21. Nf6 {[%emt 0:00:12]} Bxf6 {[%emt 0:02:23]} 22. gxf6 {[%emt 0:00:57]} Kxf6 {[%emt 0:01:37]} 23. Ne5 {[%emt 0:00:12]} Na5 {[%emt 0:02:25]} 24. Rxd6 {[%emt 0:00:21]} Rxd6 {[%emt 0:00:03]} 25. Bxb7 {[%emt 0:00:08]} Nxb7 {[%emt 0:00:25]} 26. Bf2 {[%emt 0:03:37]} h6 {[%emt 0:02:21]} 27. h4 {[%emt 0:01:07] [#] Strongly threatening Rg1.} Na5 {[%emt 0:00:43]} 28. Rg1 {[%emt 0:00:54] Weighted Error Value: White=0.08 (flawless) /Black=0.49} 1-0

[Event "67th Mexican-ch Open 2022"]
[Site "Chihuahua"]
[Date "2022.04.14"]
[Round "2.24"]
[White "Tapie Amione, Pablo Adib"]
[Black "Gomez Vazquez, Enrique"]
[Result "*"]
[ECO "E76"]
[WhiteElo "2241"]
[BlackElo "1661"]
[Annotator "TA"]
[PlyCount "34"]
[EventDate "2022.04.12"]
[EventType "swiss"]
[EventCountry "MEX"]
[SourceTitle "playchess.com"]
[Source "ChessBase"]
[SourceQuality "1"]
[TimeControl "5400+30"]

{[%evp 16,21,0,3,43,44,45,12]} 1. d4 {[%emt 0:00:04]} Nf6 {[%emt 0:00:18]} 2. c4 {[%emt 0:00:08]} g6 {[%emt 0:00:06]} 3. Nc3 {[%emt 0:00:05]} Bg7 {[%emt 0:00:10]} 4. e4 {[%emt 0:00:10]} d6 {[%emt 0:00:13]} 5. f4 {[%emt 0:00:37]} O-O {[%emt 0:00:40]} 6. Nf3 {[%emt 0:00:09]} c5 {[%emt 0:00:11]} 7. dxc5 {[%emt 0:02:03]} dxc5 {[%emt 0:00:20]} 8. Qxd8 {[%emt 0:00:07]} Rxd8 {[%emt 0:00:02]} 9. e5 {[%emt 0:00:31]} Ng4 {[%emt 0:02:54] E76: King's Indian: Four Pawns Attack: Lines specific to 6 Nf3 move-order.} 10. h3 {[%emt 0:02:05]} Nh6 {[%emt 0:00:13]} 11. Be3 {[%emt 0:00:21] [#]} {Predecessor:} b6 $146 12. g4 Nc6 13. Bg2 Nb4 14. Ke2 Ba6 15. b3 Bb7 16. Rad1 f6 17. a3 Nc2 {1-0 (61) Turov,M (2597)-Djuraev,S (2350) Tashkent 2013} *